fUST/lending_fUST_20240731
["ID","MTS","AMOUNT","RATE_DAILY","PERIOD"]
[333703947,1722382238552,-3404.57562444,0.000145,2]
[333703948,1722382238564,-311.18,0.00014678,2]
[333703949,1722382238574,-267.47941696,0.00014679,5]
[333703950,1722382238582,-500.0,0.00014679,2]
[333703951,1722382238593,-494.11748245,0.00014679,2]
[333703952,1722382238607,-5.88251755,0.00014679,2]
[333703953,1722382238617,-504.70836467,0.00014679,2]
[333703954,1722382238627,-265.09865296,0.00014679,2]
[333704017,1722382244266,-234.90134704,0.00014679,2]
[333704019,1722382244276,-500.0,0.00014679,2]
[333704020,1722382244286,-500.0,0.00014679,2]
[333704022,1722382244296,-500.0,0.00014679,2]
[333704024,1722382244306,-500.0,0.00014679,2]
[333704026,1722382244316,-510.32595087,0.00014679,2]
[333704028,1722382244325,-502.50851254,0.00014679,2]
[333704029,1722382244335,-500.0,0.00014679,2]
[333704030,1722382244344,-500.0,0.00014679,2]
[333704032,1722382244354,-500.0,0.00014679,2]
[333704034,1722382244363,-500.0,0.00014679,2]
[333704036,1722382244372,-500.0,0.00014679,2]
[333704038,1722382244382,-500.0,0.00014679,2]
[333704040,1722382244391,-500.0,0.00014679,2]
[333704041,1722382244401,-196.583047,0.00014679,2]
[333704043,1722382244411,-500.0,0.00014679,2]
[333704045,1722382244420,-500.0,0.00014679,2]
[333704047,1722382244430,-500.0,0.00014679,2]
[333704049,1722382244440,-151.0,0.00014679,2]
[333704051,1722382244449,-151.0,0.00014679,2]
[333704052,1722382244459,-151.0,0.00014679,2]
[333704053,1722382244469,-500.0,0.00014679,2]
[333704054,1722382244479,-151.0,0.00014679,2]
[333704056,1722382244489,-500.0,0.00014679,2]
[333704058,1722382244499,-500.0,0.00014679,2]
[333704060,1722382244508,-151.0,0.00014679,2]
[333704062,1722382244517,-151.0,0.00014679,2]
[333704063,1722382244527,-302.18389473,0.00014679,2]
[333704065,1722382244537,-359.171458,0.00014679,2]
[333704066,1722382244547,-359.171458,0.00014679,2]
[333704067,1722382244557,-359.171458,0.00014679,2]
[333704068,1722382244567,-359.171458,0.00014679,2]
[333704069,1722382244576,-151.0,0.00014679,2]
[333704070,1722382244586,-151.0,0.00014679,2]
[333704071,1722382244595,-284.1453,0.00014679,2]
[333704072,1722382244607,-151.0,0.00014679,2]
[333704073,1722382244617,-151.0,0.00014679,2]
[333704074,1722382244630,-151.0,0.00014679,2]
[333704075,1722382244640,-151.0,0.00014679,2]
[333704076,1722382244651,-151.0,0.00014679,2]
[333704077,1722382244662,-151.0,0.00014679,2]
[333704078,1722382244671,-151.0,0.00014679,2]
[333704079,1722382244681,-179.45495,0.00014679,2]
[333704080,1722382244690,-500.0,0.00014679,2]
[333704081,1722382244700,-500.0,0.00014679,2]
[333704082,1722382244710,-151.0,0.00014679,2]
[333704083,1722382244721,-151.0,0.00014679,2]
[333704084,1722382244733,-151.0,0.00014679,2]
[333704085,1722382244743,-151.0,0.00014679,2]
[333704086,1722382244754,-500.0,0.00014679,2]
[333704087,1722382244764,-217.923883,0.00014679,2]
[333704088,1722382244774,-500.0,0.00014679,2]
[333704089,1722382244784,-151.0,0.00014679,2]
[333704090,1722382244794,-151.0,0.00014679,2]
[333704091,1722382244805,-14.11424456,0.00014679,2]
[333704127,1722382310127,164.96095,0.00012986,2]
[333704139,1722383132119,-1466.83943713,0.00012,2]
[333704141,1722383348150,-572.846853,0.00012,2]
[333704142,1722383348176,-169.340831,0.00012986,2]
[333704202,1722383432595,-367.69126021,0.00014246,2]
[333704204,1722383432605,-214.709859,0.00014247,2]
[333704206,1722383432615,-750.0,0.00014247,2]
[333704208,1722383432624,-500.0,0.00014678,2]
[333704210,1722383432634,-500.0,0.00014678,2]
[333704212,1722383432643,-500.0,0.00014678,2]
[333704214,1722383432653,-152.76520851,0.00014678,2]
[333704216,1722383432662,-500.0,0.00014678,2]
[333704218,1722383432672,-500.0,0.00014678,2]
[333704220,1722383432682,-500.0,0.00014678,2]
[333704222,1722383432691,-518.15501079,0.00014678,2]
[333704224,1722383432700,-500.0,0.00014678,2]
[333704228,1722383432719,-502.47979304,0.00014678,2]
[333704230,1722383432730,-500.0,0.00014678,2]
[333704232,1722383432742,-500.0,0.00014678,2]
[333704234,1722383432751,-500.0,0.00014678,2]
[333704236,1722383432762,-500.0,0.00014678,2]
[333704238,1722383432772,-238.02611547,0.00014678,2]
[333704240,1722383432784,-500.0,0.00014678,2]
[333704243,1722383432799,-500.0,0.00014678,2]
[333704245,1722383432808,-273.25208348,0.00014678,2]
[333704247,1722383432818,-329.154476,0.00014679,2]
[333704249,1722383432827,-152.236607,0.00014679,2]
[333704251,1722383432837,-151.0,0.00014679,2]
[333704253,1722383432848,-151.0,0.00014679,2]
[333704255,1722383432858,-151.0,0.00014679,2]
[333704257,1722383432868,-151.0,0.00014679,2]
[333704259,1722383432879,-151.0,0.00014679,2]
[333704262,1722383432891,-151.0,0.00014679,2]
[333704264,1722383432901,-151.0,0.00014679,2]
[333704266,1722383432913,-500.0,0.00014679,2]
[333704268,1722383432927,-151.0,0.00014679,2]
[333704271,1722383432937,-107.12072136,0.00014679,2]
[333704273,1722383432951,-43.87927864,0.00014679,2]
[333704275,1722383432960,-500.0,0.00014679,2]
[333704277,1722383432971,-154.509529,0.00014679,2]
[333704306,1722383433241,-79.53400394,0.00014679,2]
[333704397,1722383440865,-267.47941696,0.00014679,5]
[333704398,1722383440876,-71.46599606,0.00014679,2]
[333704399,1722383440886,-151.0,0.00014679,2]
[333704400,1722383440897,-151.0,0.00014679,2]
[333704401,1722383440906,-237.918072,0.00014679,2]
[333704402,1722383440917,-287.337166,0.00014679,2]
[333704403,1722383440927,-287.337166,0.00014679,2]
[333704404,1722383440937,-287.337166,0.00014679,2]
[333704405,1722383440947,-287.337166,0.00014679,2]
[333704406,1722383440957,-287.337166,0.00014679,2]
[333704407,1722383440967,-287.337166,0.00014679,2]
[333704408,1722383440977,-151.0,0.00014679,2]
[333704409,1722383440987,-151.0,0.00014679,2]
[333704410,1722383440997,-151.0,0.00014679,2]
[333704411,1722383441007,-151.0,0.00014679,2]
[333704412,1722383441018,-151.0,0.00014679,2]
[333704413,1722383441029,-151.0,0.00014679,2]
[333704414,1722383441039,-151.0,0.00014679,2]
[333704415,1722383441048,-298.694893,0.00014679,2]
[333704416,1722383441057,-260.241733,0.00014679,2]
[333704417,1722383441067,-260.241733,0.00014679,2]
[333704418,1722383441077,-260.241733,0.00014679,2]
[333704419,1722383441087,-260.241733,0.00014679,2]
[333704420,1722383441098,-260.241733,0.00014679,2]
[333704421,1722383441108,-260.241733,0.00014679,2]
[333704422,1722383441118,-260.241733,0.00014679,2]
[333704423,1722383441127,-260.241733,0.00014679,2]
[333704424,1722383441137,-260.241733,0.00014679,2]
[333704425,1722383441147,-260.241733,0.00014679,2]
[333704426,1722383441157,-159.049536,0.00014679,2]
[333704427,1722383441167,-159.049536,0.00014679,2]
[333704428,1722383441176,-159.049536,0.00014679,2]
[333704429,1722383441186,-159.049536,0.00014679,2]
[333704430,1722383441196,-159.049536,0.00014679,2]
[333704431,1722383441205,-159.049536,0.00014679,2]
[333704432,1722383441215,-159.049536,0.00014679,2]
[333704433,1722383441224,-159.049536,0.00014679,2]
[333704434,1722383441234,-382.890634,0.00014679,2]
[333704435,1722383441243,-159.049536,0.00014679,2]
[333704436,1722383441253,-382.890634,0.00014679,2]
[333704437,1722383441264,-159.049536,0.00014679,2]
[333704438,1722383441276,-382.890634,0.00014679,2]
[333704439,1722383441286,-382.890634,0.00014679,2]
[333704440,1722383441297,-382.890634,0.00014679,2]
[333704441,1722383441307,-382.890634,0.00014679,2]
[333704442,1722383441316,-382.890634,0.00014679,2]
[333704443,1722383441326,-382.890634,0.00014679,2]
[333704444,1722383441336,-382.890634,0.00014679,2]
[333704445,1722383441346,-382.890634,0.00014679,2]
[333704446,1722383441355,-151.0,0.00014679,2]
[333704447,1722383441365,-151.0,0.00014679,2]
[333704448,1722383441374,-151.0,0.00014679,2]
[333704449,1722383441385,-151.0,0.00014679,2]
[333704450,1722383441397,-151.0,0.00014679,2]
[333704451,1722383441409,-151.0,0.00014679,2]
[333704452,1722383441420,-151.0,0.00014679,2]
[333704453,1722383441429,-151.0,0.00014679,2]
[333704454,1722383441439,-151.0,0.00014679,2]
[333704455,1722383441448,-151.0,0.00014679,2]
[333704456,1722383441460,-151.0,0.00014679,2]
[333704457,1722383441472,-289.217223,0.00014679,2]
[333704458,1722383441482,-151.0,0.00014679,2]
[333704459,1722383441493,-151.0,0.00014679,2]
[333704460,1722383441504,-285.970132,0.00014679,2]
[333704461,1722383441519,-151.0,0.00014679,2]
[333704462,1722383441530,-151.0,0.00014679,2]
[333704463,1722383441541,-151.0,0.00014679,2]
[333704464,1722383441553,-151.0,0.00014679,2]
[333704465,1722383441563,-151.0,0.00014679,2]
[333704466,1722383441573,-182.637846,0.00014679,2]
[333704467,1722383441584,-199.731419,0.00014679,2]
[333704468,1722383441596,-199.731419,0.00014679,2]
[333704469,1722383441606,-199.731419,0.00014679,2]
[333704470,1722383441617,-199.731419,0.00014679,2]
[333704471,1722383441628,-199.731419,0.00014679,2]
[333704472,1722383441638,-199.731419,0.00014679,2]
[333704473,1722383441648,-199.731419,0.00014679,2]
[333704474,1722383441658,-199.731419,0.00014679,2]
[333704475,1722383441667,-199.731419,0.00014679,2]
[333704476,1722383441677,-199.731419,0.00014679,2]
[333704477,1722383441687,-151.0,0.00014679,2]
[333704478,1722383441698,-151.0,0.00014679,2]
[333704479,1722383441708,-151.0,0.00014679,2]
[333704480,1722383441718,-248.9454,0.00014679,2]
[333704481,1722383441728,-151.0,0.00014679,2]
[333704482,1722383441737,-267.962059,0.00014679,2]
[333704483,1722383441747,-151.0,0.00014679,2]
[333704484,1722383441757,-23770.3716222,0.00014679,2]
[333704485,1722383441767,-11885.1858111,0.0001468,2]
[333704486,1722383441776,-151.0,0.00014686,2]
[333704487,1722383441787,-151.0,0.00014686,2]
[333704488,1722383441797,-287.337166,0.00014686,2]
[333704489,1722383441806,-287.337166,0.00014686,2]
[333704490,1722383441816,-500.0,0.00014687,2]
[333704491,1722383441826,-500.0,0.00014688,2]
[333704492,1722383441835,-289.26783089,0.00014688,2]
[333704493,1722383441845,-500.0,0.00014688,2]
[333704494,1722383441854,-153.18455322,0.00014688,2]
[333704495,1722383441864,-342.44326346,0.00014688,2]
[333704496,1722383441874,-500.0,0.00014688,2]
[333704497,1722383441884,-228.00337226,0.00014688,2]
[333704498,1722383441895,-500.0,0.00014688,2]
[333704499,1722383441904,-500.0,0.00014688,2]
[333704500,1722383441915,-500.0,0.00014688,2]
[333704501,1722383441924,-500.0,0.00014688,2]
[333704502,1722383441934,-500.0,0.00014688,2]
[333704503,1722383441943,-500.0,0.00014688,2]
[333704504,1722383441953,-500.0,0.00014688,2]
[333704505,1722383441963,-492.62128059,0.00014688,2]
[333704506,1722383441973,-300.0,0.00014688,2]
[333704507,1722383441984,-159.60236058,0.00014688,2]
[333704508,1722383441996,-500.0,0.00014688,2]
[333704509,1722383442006,-151.0,0.00014688,2]
[333704510,1722383442017,-262.563635,0.00014688,2]
[333704511,1722383442027,-151.0,0.00014688,2]
[333704512,1722383442037,-203.944832,0.00014688,2]
[333704513,1722383442048,-287.337166,0.00014688,2]
[333704514,1722383442058,-287.337166,0.00014688,2]
[333704515,1722383442068,-287.337166,0.00014688,2]
[333704516,1722383442078,-287.337166,0.00014688,2]
[333704517,1722383442089,-287.337166,0.00014688,2]
[333704518,1722383442100,-287.337166,0.00014688,2]
[333704519,1722383442109,-151.0,0.00014688,2]
[333704520,1722383442119,-151.0,0.00014688,2]
[333704521,1722383442129,-151.0,0.00014688,2]
[333704522,1722383442138,-175.4051336,0.00014688,2]
[333704561,1722383520017,170.105277,0.00012986,2]
[333704573,1722383923766,154.83890047,9.999e-05,2]
[333704574,1722383929824,154.80306791,9.999e-05,2]
[333704575,1722383933903,154.88716973,0.0001,2]
[333704576,1722383938138,154.88290721,9.999e-05,2]
[333704577,1722383946649,154.81560789,9.999e-05,2]
[333704578,1722383946923,154.86287803,9.999e-05,2]
[333704579,1722383949449,154.83638357,9.999e-05,2]
[333704580,1722384091960,200.0,0.00023855,120]
[333704581,1722384151404,200.0,0.00023948,120]
[333704583,1722384341155,-300.0,0.00010958,2]
[333704584,1722384341179,-160.0,0.00010958,2]
[333704585,1722384341202,-413.01,0.00010959,2]
[333704586,1722384341225,-344.18,0.00010959,2]
[333704587,1722384341248,-286.81,0.00010959,2]
[333704588,1722384341271,-239.01,0.00010959,2]
[333704589,1722384341294,-199.18,0.00010959,2]
[333704590,1722384341317,-165.98,0.00010959,2]
[333704591,1722384341339,-829.93,0.00010959,2]
[333704592,1722384341361,-298.802119,0.00012054,2]
[333704594,1722384439100,-154.85312198,0.00012119,2]
[333704595,1722384439124,-102.95919402,0.00012795,2]
[333704610,1722384549159,-1392.7834476,0.00012698,2]
[333704611,1722384549183,-63.70747198,0.00012795,2]
[333704612,1722384549206,-300.0,0.00012959,2]
[333704613,1722384549230,-24900.0,0.0001296,2]
[333704614,1722384549252,-158.441376,0.00012986,2]
[333704615,1722384549274,-166.666666,0.00013144,2]
[333704655,1722384631760,-250.0,0.00013373,2]
[333704657,1722384631770,-250.0,0.00013409,2]
[333704659,1722384631779,-203.7636435,0.00013446,2]
[333704799,1722384637903,-46.2363565,0.00013446,2]
[333704800,1722384637914,-250.0,0.00013483,2]
[333704801,1722384637923,-166.666666,0.00013493,2]
[333704803,1722384637935,-158.19959262,0.00013519,2]
[333704804,1722384638013,-91.80040738,0.00013519,2]
[333704805,1722384638024,-250.0,0.00013556,2]
[333704806,1722384638035,-250.0,0.00013593,2]
[333704807,1722384638045,-250.0,0.00013629,2]
[333704808,1722384638056,-250.0,0.00013666,2]
[333704809,1722384638066,-250.0,0.00013703,2]
[333704810,1722384638076,-250.0,0.00013739,2]
[333704811,1722384638085,-250.0,0.00013776,2]
[333704812,1722384638094,-250.0,0.00013813,2]
[333704813,1722384638104,-166.666666,0.00013842,2]
[333704814,1722384638113,-250.0,0.00013849,2]
[333704815,1722384638123,-250.0,0.00013886,2]
[333704816,1722384638132,-250.0,0.00013923,2]
[333704817,1722384638142,-250.0,0.0001396,2]
[333704818,1722384638151,-250.0,0.00013996,2]
[333704819,1722384638162,-250.0,0.00014033,2]
[333704820,1722384638172,-250.0,0.0001407,2]
[333704821,1722384638181,-166.666666,0.00014191,2]
[333704822,1722384638193,-203.974366,0.00014247,2]
[333704823,1722384638203,-712.5,0.00014247,2]
[333704824,1722384638212,-300.0,0.00014247,2]
[333704825,1722384638222,-367.69126021,0.00014289,2]
[333704826,1722384638231,-306.0,0.00014341,2]
[333704827,1722384638241,-633.56992167,0.00014402,2]
[333704828,1722384638251,-4443.71676569,0.00014441,2]
[333704829,1722384638260,-166.666666,0.0001454,2]
[333704830,1722384638270,-292.71363199,0.00014588,2]
[333704831,1722384638280,-292.71363196,0.00014589,2]
[333704832,1722384638289,-292.71363196,0.00014589,2]
[333704833,1722384638298,-292.71363196,0.0001459,2]
[333704834,1722384638308,-500.0,0.00014678,2]
[333704835,1722384638317,-525.66,0.00014678,2]
[333704836,1722384638327,-500.0,0.00014678,2]
[333704837,1722384638336,-605.14702561,0.00014678,2]
[333704838,1722384638345,-225.0,0.00014678,2]
[333704839,1722384638354,-500.0,0.00014678,2]
[333704840,1722384638364,-500.0,0.00014678,2]
[333704841,1722384638373,-500.0,0.00014678,2]
[333704842,1722384638383,-151.0,0.00014679,2]
[333704843,1722384638392,-151.0,0.00014679,2]
[333704844,1722384638401,-151.0,0.00014679,2]
[333704845,1722384638411,-151.0,0.00014679,2]
[333704846,1722384638420,-500.0,0.00014679,2]
[333704847,1722384638429,-151.0,0.00014679,2]
[333704848,1722384638442,-155.39902,0.00014679,2]
[333704849,1722384638451,-500.0,0.00014679,2]
[333704850,1722384638460,-500.0,0.00014679,2]
[333704851,1722384638469,-500.0,0.00014679,2]
[333704852,1722384638479,-500.0,0.00014679,2]
[333704853,1722384638488,-151.0,0.00014679,2]
[333704854,1722384638497,-151.0,0.00014679,2]
[333704855,1722384638507,-151.0,0.00014679,2]
[333704856,1722384638516,-151.0,0.00014679,2]
[333704857,1722384638525,-151.0,0.00014679,2]
[333704858,1722384638535,-151.0,0.00014679,2]
[333704859,1722384638545,-993.32327884,0.00014679,2]
[333704860,1722384638561,-24983.81366186,0.00014679,2]
[333704861,1722384638570,-265.280286,0.00014688,2]
[333704862,1722384638580,-239.71028443,0.00014688,2]
[333704863,1722384638589,-500.0,0.00014688,2]
[333704864,1722384638599,-500.0,0.00014688,2]
[333704865,1722384638608,-202.48748162,0.00014688,2]
[333704866,1722384638618,-504.83489641,0.00014688,2]
[333704867,1722384638627,-500.0,0.00014688,2]
[333704868,1722384638636,-500.0,0.00014688,2]
[333704869,1722384638646,-157.22918726,0.00014688,2]
[333704870,1722384638655,-500.0,0.00014688,2]
[333704871,1722384638664,-500.0,0.00014688,2]
[333704872,1722384638674,-500.0,0.00014688,2]
[333704873,1722384638685,-191.445317,0.00014688,2]
[333704874,1722384638695,-191.445317,0.00014688,2]
[333704875,1722384638704,-500.0,0.00014688,2]
[333704876,1722384638713,-500.0,0.00014688,2]
[333704877,1722384638723,-500.0,0.00014688,2]
[333704878,1722384638732,-151.0,0.00014688,2]
[333704879,1722384638741,-214.022994,0.00014688,2]
[333704880,1722384638751,-500.0,0.00014688,2]
[333704881,1722384638760,-500.0,0.00014688,2]
[333704882,1722384638769,-500.0,0.00014688,2]
[333704883,1722384638779,-187.92085274,0.00014688,2]
[333704884,1722384638788,-151.0,0.00014688,2]
[333704885,1722384638797,-500.0,0.00014688,2]
[333704886,1722384638807,-151.0,0.00014688,2]
[333704887,1722384638816,-500.0,0.00014688,2]
[333704888,1722384638826,-460.23682754,0.00014688,2]
[333704889,1722384638835,-151.0,0.00014688,2]
[333704890,1722384638844,-500.0,0.00014688,2]
[333704891,1722384638855,-500.0,0.00014688,2]
[333704892,1722384638865,-500.0,0.00014688,2]
[333704893,1722384638874,-500.0,0.00014688,2]
[333704894,1722384638884,-500.0,0.00014688,2]
[333704895,1722384638893,-500.0,0.00014688,2]
[333704896,1722384638903,-561.33799738,0.00014688,2]
[333704897,1722384638913,-500.0,0.00014688,2]
[333704898,1722384638922,-500.0,0.00014688,2]
[333704899,1722384638932,-500.0,0.00014688,2]
[333704900,1722384638946,-151.0,0.00014688,2]
[333704901,1722384638961,-151.0,0.00014688,2]
[333704902,1722384638971,-185.314197,0.00014688,2]
[333704903,1722384638980,-151.0,0.00014688,2]
[333704904,1722384638990,-292.6982123,0.00014689,2]
[333704905,1722384639000,-500.0,0.00014689,2]
[333704906,1722384639010,-712.16,0.00014689,2]
[333704907,1722384639020,-500.0,0.00014689,2]
[333704908,1722384639029,-542.48749282,0.00014689,2]
[333704909,1722384639039,-500.0,0.00014689,2]
[333704910,1722384639051,-1564.55,0.00014689,2]
[333704911,1722384639061,-500.0,0.00014689,2]
[333704912,1722384639071,-549.79,0.00014689,2]
[333704913,1722384639080,-632.06,0.00014689,2]
[333704914,1722384639090,-556.28876023,0.00014689,2]
[333704915,1722384639102,-552.29,0.00014689,2]
[333704916,1722384639113,-500.0,0.00014689,2]
[333704917,1722384639123,-500.0,0.00014689,2]
[333704918,1722384639133,-500.0,0.00014689,2]
[333704919,1722384639142,-500.0,0.00014689,2]
[333704920,1722384639152,-500.0,0.00014689,2]
[333704921,1722384639162,-500.0,0.00014689,2]
[333704922,1722384639172,-501.25724494,0.00014689,2]
[333704923,1722384639378,-500.0,0.00014689,2]
[333704924,1722384639387,-500.0,0.00014689,2]
[333704925,1722384639397,-500.0,0.00014689,2]
[333704926,1722384639406,-632.83,0.00014689,2]
[333704927,1722384639415,-500.0,0.00014689,2]
[333704928,1722384639425,-500.0,0.00014689,2]
[333704929,1722384639437,-500.0,0.00014689,2]
[333704930,1722384639446,-500.0,0.00014689,2]
[333704931,1722384639456,-511.3,0.00014689,2]
[333704932,1722384639466,-402.36312419,0.00014689,2]
[333704933,1722384639475,-500.0,0.00014689,2]
[333704934,1722384639485,-500.0,0.00014689,2]
[333704935,1722384639494,-626.41446317,0.00014689,2]
[333704936,1722384639504,-500.0,0.00014689,2]
[333704937,1722384639513,-500.0,0.00014689,2]
[333704938,1722384639523,-500.0,0.00014689,2]
[333704940,1722384639533,-500.0,0.00014689,2]
[333704941,1722384639543,-214.00844577,0.00014689,2]
[333704942,1722384639554,-500.0,0.00014689,2]
[333704943,1722384639563,-500.0,0.00014689,2]
[333704944,1722384639573,-500.0,0.00014689,2]
[333704945,1722384639582,-500.0,0.00014689,2]
[333704946,1722384639592,-500.0,0.00014689,2]
[333704947,1722384639602,-500.0,0.00014689,2]
[333704948,1722384639612,-500.0,0.00014689,2]
[333704949,1722384639621,-500.0,0.00014689,2]
[333704950,1722384639631,-500.0,0.00014689,2]
[333704951,1722384639640,-500.0,0.00014689,2]
[333704952,1722384639649,-500.0,0.00014689,2]
[333704953,1722384639659,-500.0,0.00014689,2]
[333704954,1722384639668,-500.0,0.00014689,2]
[333704955,1722384639678,-500.0,0.00014689,2]
[333704956,1722384639688,-500.0,0.00014689,2]
[333704957,1722384639698,-500.0,0.00014689,2]
[333704958,1722384639707,-500.0,0.00014689,2]
[333704959,1722384639716,-500.0,0.00014689,2]
[333704960,1722384639726,-506.10775999,0.00014689,2]
[333704962,1722384639735,-278.42,0.00014689,2]
[333704963,1722384639744,-500.0,0.00014689,2]
[333704964,1722384639753,-500.0,0.00014689,2]
[333704965,1722384639763,-500.0,0.00014689,2]
[333704967,1722384639773,-500.0,0.00014689,2]
[333704969,1722384639782,-500.0,0.00014689,2]
[333704971,1722384639792,-500.0,0.00014689,2]
[333704972,1722384639801,-500.0,0.00014689,2]
[333704973,1722384639811,-507.21680693,0.00014689,2]
[333704975,1722384639821,-500.0,0.00014689,2]
[333704977,1722384639830,-500.0,0.00014689,2]
[333704979,1722384639839,-500.0,0.00014689,2]
[333704981,1722384639849,-500.0,0.00014689,2]
[333704982,1722384639858,-505.08696411,0.00014689,2]
[333704984,1722384639867,-500.0,0.00014689,2]
[333704985,1722384639877,-500.0,0.00014689,2]
[333704986,1722384639886,-588.29253368,0.00014689,2]
[333704988,1722384639896,-500.0,0.00014689,2]
[333704989,1722384639905,-500.0,0.00014689,2]
[333704991,1722384639914,-500.0,0.00014689,2]
[333704993,1722384639924,-500.0,0.00014689,2]
[333704994,1722384639935,-500.0,0.00014689,2]
[333704996,1722384639944,-500.0,0.00014689,2]
[333704998,1722384639954,-624.64176095,0.00014689,2]
[333705000,1722384639965,-500.0,0.00014689,2]
[333705002,1722384639976,-500.0,0.00014689,2]
[333705004,1722384639986,-500.0,0.00014689,2]
[333705006,1722384639995,-500.0,0.00014689,2]
[333705008,1722384640005,-500.0,0.00014689,2]
[333705010,1722384640014,-500.0,0.00014689,2]
[333705012,1722384640023,-500.0,0.00014689,2]
[333705015,1722384640033,-227.88386343,0.00014689,2]
[333705018,1722384640042,-500.0,0.00014689,2]
[333705021,1722384640052,-216.21927671,0.00014689,2]
[333705022,1722384640062,-500.0,0.00014689,2]
[333705023,1722384640071,-500.0,0.00014689,2]
[333705024,1722384640081,-500.0,0.00014689,2]
[333705025,1722384640091,-302.04969017,0.00014689,2]
[333705026,1722384640100,-500.0,0.00014689,2]
[333705027,1722384640109,-500.0,0.00014689,2]
[333705028,1722384640119,-503.42198237,0.00014689,2]
[333705029,1722384640128,-500.0,0.00014689,2]
[333705030,1722384640137,-500.0,0.00014689,2]
[333705031,1722384640147,-500.0,0.00014689,2]
[333705032,1722384640157,-500.0,0.00014689,2]
[333705033,1722384640167,-500.0,0.00014689,2]
[333705034,1722384640176,-500.0,0.00014689,2]
[333705035,1722384640186,-500.0,0.00014689,2]
[333705036,1722384640196,-396.72760412,0.00014689,2]
[333705037,1722384640205,-500.0,0.00014689,2]
[333705038,1722384640215,-500.0,0.00014689,2]
[333705039,1722384640224,-500.0,0.00014689,2]
[333705040,1722384640234,-500.0,0.00014689,2]
[333705041,1722384640243,-507.20628239,0.00014689,2]
[333705042,1722384640252,-500.0,0.00014689,2]
[333705043,1722384640262,-548.58,0.00014689,2]
[333705044,1722384640271,-500.0,0.00014689,2]
[333705045,1722384640282,-500.0,0.00014689,2]
[333705046,1722384640291,-500.0,0.00014689,2]
[333705047,1722384640301,-500.0,0.00014689,2]
[333705048,1722384640310,-512.18768842,0.00014689,2]
[333705049,1722384640320,-500.0,0.00014689,2]
[333705050,1722384640330,-500.0,0.00014689,2]
[333705051,1722384640340,-502.3462927,0.00014689,2]
[333705052,1722384640350,-500.0,0.00014689,2]
[333705053,1722384640360,-500.0,0.00014689,2]
[333705054,1722384640370,-518.23,0.00014689,2]
[333705055,1722384640380,-500.0,0.00014689,2]
[333705056,1722384640390,-500.0,0.00014689,2]
[333705057,1722384640400,-500.0,0.00014689,2]
[333705058,1722384640411,-500.0,0.00014689,2]
[333705059,1722384640420,-500.0,0.00014689,2]
[333705060,1722384640430,-516.41052873,0.00014689,2]
[333705061,1722384640443,-217.78729524,0.00014689,2]
[333705062,1722384640452,-500.0,0.00014689,2]
[333705063,1722384640462,-500.0,0.00014689,2]
[333705064,1722384640472,-520.40594031,0.00014689,2]
[333705065,1722384640481,-500.0,0.00014689,2]
[333705066,1722384640490,-501.10551533,0.00014689,2]